{"text_format":"1","workbook":"xlsx","n_sheets":5,"sheets":["Invoice","Data","الأسعار","العملاء","الأصناف"],"not_rendered":{"charts":0,"images":2,"macros":1,"external_links":0,"defined_names":3,"comments":0,"pivot_tables":0},"unopened":[],"bounds":{"document_bytes":16777216,"sheet_cells":100000,"rows_first":2000,"rows_last":500,"rows_between":2000,"halvings":0,"cell_chars":16384,"cell_head_chars":4096},"cells_cut":0,"cells_raw":0,"read":"whole","date_system":"1900"}

{"sheet":"Invoice","index":0,"n_rows":36,"n_cols":11,"rows_kept":36,"cut":false,"hidden":false,"merged":[[4,11,4,16],[5,1,5,6],[2,0,2,8],[28,2,28,8],[27,7,27,8],[24,7,24,8]]}
["شركة دي ام للتوريدات والملابس الجاهزة"]
[" "]
["فاتورة تجارية Commercial Invoice"]
[]
["رقم الفاتورة: ",4902,null,null,null,null,null,"التاريخ : "]
["المطلوب من:",null,null,null,null,null,null,null,"Requested From"]
[null,{"$f":"B5&\"_\"&B6","v":"4902_"}]
["م","كود الصنف","اسم الصنف","الوحدة","سعـر الوحـدة","الكمية","الإجمــالى","عدد العبوات","عدد الوحدات",null,"اسم الصنف"]
[{"$f":"IF(C9=\"\",\"\",1)","v":""},null,{"$f":"IFERROR(VLOOKUP(K9,الأسعار!$F:$G,2,0),\"\")","v":""},{"$f":"IFERROR(VLOOKUP(C9,الأسعار!$A:$C,3,0),\"\")","v":""},{"$f":"IFERROR(VLOOKUP(K9,الأسعار!$F:$H,3,0),\"\")","v":""},null,{"$f":"IFERROR(E9*F9,\"\")","v":""}]
[{"$f":"IF(C10=\"\",\"\",A9+1)","v":""},null,{"$f":"IFERROR(VLOOKUP(K10,الأسعار!$F:$G,2,0),\"\")","v":""},{"$f":"IFERROR(VLOOKUP(C10,الأسعار!$A:$C,3,0),\"\")","v":""},{"$f":"IFERROR(VLOOKUP(K10,الأسعار!$F:$H,3,0),\"\")","v":""},null,{"$f":"IFERROR(E10*F10,\"\")","v":""}]
[{"$f":"IF(C11=\"\",\"\",A10+1)","v":""},null,{"$f":"IFERROR(VLOOKUP(K11,الأسعار!$F:$G,2,0),\"\")","v":""},{"$f":"IFERROR(VLOOKUP(C11,الأسعار!$A:$C,3,0),\"\")","v":""},{"$f":"IFERROR(VLOOKUP(K11,الأسعار!$F:$H,3,0),\"\")","v":""},null,""]
["",null,{"$f":"IFERROR(VLOOKUP(K12,الأسعار!$F:$G,2,0),\"\")","v":""},{"$f":"IFERROR(VLOOKUP(C12,الأسعار!$A:$C,3,0),\"\")","v":""},{"$f":"IFERROR(VLOOKUP(K12,الأسعار!$F:$H,3,0),\"\")","v":""},null,""]
["",null,{"$f":"IFERROR(VLOOKUP(K13,الأسعار!$F:$G,2,0),\"\")","v":""},{"$f":"IFERROR(VLOOKUP(C13,الأسعار!$A:$C,3,0),\"\")","v":""},{"$f":"IFERROR(VLOOKUP(K13,الأسعار!$F:$H,3,0),\"\")","v":""},null,""]
["",null,{"$f":"IFERROR(VLOOKUP(K14,الأسعار!$F:$G,2,0),\"\")","v":""},{"$f":"IFERROR(VLOOKUP(C14,الأسعار!$A:$C,3,0),\"\")","v":""},{"$f":"IFERROR(VLOOKUP(K14,الأسعار!$F:$H,3,0),\"\")","v":""},null,""]
["",null,{"$f":"IFERROR(VLOOKUP(K15,الأسعار!$F:$G,2,0),\"\")","v":""},{"$f":"IFERROR(VLOOKUP(C15,الأسعار!$A:$C,3,0),\"\")","v":""},{"$f":"IFERROR(VLOOKUP(K15,الأسعار!$F:$H,3,0),\"\")","v":""},null,""]
["",null,{"$f":"IFERROR(VLOOKUP(K16,الأسعار!$F:$G,2,0),\"\")","v":""},{"$f":"IFERROR(VLOOKUP(C16,الأسعار!$A:$C,3,0),\"\")","v":""},{"$f":"IFERROR(VLOOKUP(K16,الأسعار!$F:$H,3,0),\"\")","v":""},null,""]
["",null,{"$f":"IFERROR(VLOOKUP(K17,الأسعار!$F:$G,2,0),\"\")","v":""},{"$f":"IFERROR(VLOOKUP(C17,الأسعار!$A:$C,3,0),\"\")","v":""},{"$f":"IFERROR(VLOOKUP(K17,الأسعار!$F:$H,3,0),\"\")","v":""},null,""]
["",null,{"$f":"IFERROR(VLOOKUP(K18,الأسعار!$F:$G,2,0),\"\")","v":""},{"$f":"IFERROR(VLOOKUP(C18,الأسعار!$A:$C,3,0),\"\")","v":""},{"$f":"IFERROR(VLOOKUP(K18,الأسعار!$F:$H,3,0),\"\")","v":""},null,""]
["",null,{"$f":"IFERROR(VLOOKUP(K19,الأسعار!$F:$G,2,0),\"\")","v":""},{"$f":"IFERROR(VLOOKUP(C19,الأسعار!$A:$C,3,0),\"\")","v":""},{"$f":"IFERROR(VLOOKUP(K19,الأسعار!$F:$H,3,0),\"\")","v":""},null,""]
["",null,{"$f":"IFERROR(VLOOKUP(K20,الأسعار!$F:$G,2,0),\"\")","v":""},{"$f":"IFERROR(VLOOKUP(C20,الأسعار!$A:$C,3,0),\"\")","v":""},{"$f":"IFERROR(VLOOKUP(K20,الأسعار!$F:$H,3,0),\"\")","v":""},null,""]
["",null,{"$f":"IFERROR(VLOOKUP(K21,الأسعار!$F:$G,2,0),\"\")","v":""},{"$f":"IFERROR(VLOOKUP(C21,الأسعار!$A:$C,3,0),\"\")","v":""},{"$f":"IFERROR(VLOOKUP(K21,الأسعار!$F:$H,3,0),\"\")","v":""},null,""]
["",null,{"$f":"IFERROR(VLOOKUP(K22,الأسعار!$F:$G,2,0),\"\")","v":""},{"$f":"IFERROR(VLOOKUP(C22,الأسعار!$A:$C,3,0),\"\")","v":""},{"$f":"IFERROR(VLOOKUP(K22,الأسعار!$F:$H,3,0),\"\")","v":""},null,""]
[{"$f":"IF(C23=\"\",\"\",A22+1)","v":""},null,{"$f":"IFERROR(VLOOKUP(K23,الأسعار!$F:$G,2,0),\"\")","v":""},{"$f":"IFERROR(VLOOKUP(C23,الأسعار!$A:$C,3,0),\"\")","v":""},{"$f":"IFERROR(VLOOKUP(K23,الأسعار!$F:$H,3,0),\"\")","v":""},null,""]
["",null,{"$f":"IFERROR(VLOOKUP(K24,الأسعار!$F:$G,2,0),\"\")","v":""},{"$f":"IFERROR(VLOOKUP(C24,الأسعار!$A:$C,3,0),\"\")","v":""},{"$f":"IFERROR(VLOOKUP(K24,الأسعار!$F:$H,3,0),\"\")","v":""},null,""]
[null,null,null,null,null,null,{"$f":"SUM(G9:G24)","v":0},"اجمالي الفاتورة"]
["رقم التسجيل بضريبة المبيعات",null,"  ملف ضريبي رقم :",null,null,null,{"$f":"G25*-H26","v":0},null,"قيمة الخصم "]
["168 - 267 - 215",null,"14/191/2259/5",null,null,null,{"$f":"(G25-G26)*14%","v":0},null,"ضريبة القيمة المضافة"]
["مأمورية : قصر النيل - وسط البلد",null,null,null,null,null,{"$f":"G25-G26+G27","v":0},"صافي الفاتورة "]
[null,null,{"$f":"tafket(ROUND(G28,2),\"جنيه مصري\",\" قرش \")","v":"صفر"}]
[]
["أسم البــــــائع ",null,null,null,"استلمت البضاعة الموضحة بحالة جيدة",null,null,null,"Received Goods With Good Condition"]
[null,null,null,null,"اسم المستلم :",null,null,null,"Rec. Name"]
[null,null,null,null,"توقيع المستلم :",null,null,null,"Rec. S.G"]
[null,null,null,null,"الخــــــاتـم :",null,null,null,"Stamp"]
[]
[null,null,null,null,"Thank You For Your Cooperation"]

{"sheet":"Data","index":1,"n_rows":14,"n_cols":11,"rows_kept":14,"cut":false,"hidden":false,"merged":[]}
["رقم الفاتورة","اسم العميل","التاريخ","كود الصنف","اسم الصنف","الوحدة","سعـر الوحـدة","الكمية","الإجمــالى","عدد العبوات","عدد الوحدات"]
[null,null,null,null,null,null,"","","",null,""]
[null,null,null,null,null,null,"","","",null,""]
[null,null,null,null,null,null,"","","",null,""]
[null,null,null,null,null,null,"","","",null,""]
[null,null,null,null,null,null,"","","",null,""]
[null,null,null,null,null,null,"","","",null,""]
[null,null,null,null,null,null,"","","",null,""]
[null,null,null,null,null,null,"","","",null,""]
[null,null,null,null,null,null,"","","",null,""]
[null,null,null,null,null,null,"","","",null,""]
[null,null,null,null,null,null,"","","",null,""]
[null,null,null,null,null,null,"","","",null,""]
[null,null,null,null,null,null,"","","",null,""]

{"sheet":"الأسعار","index":2,"n_rows":253,"n_cols":8,"rows_kept":253,"cut":false,"hidden":false,"merged":[]}
["الصنف","السعر","الوحدة","العميل","العملة","الصنف المخصص","Column1","Column2"]
["شامبو 30",2.9350799999999997,"عبوة","هيلتون","جم",{"$f":"A2&\"_\"&D2","v":"شامبو 30_هيلتون"},{"$f":"Table1[[#This Row],[الصنف]]","v":"شامبو 30"},{"$f":"ROUND(Table1[[#This Row],[السعر]],2)","v":2.94}]
["باث جل 30",2.9800529999999998,"عبوة","هيلتون","جم",{"$f":"A3&\"_\"&D3","v":"باث جل 30_هيلتون"},{"$f":"Table1[[#This Row],[الصنف]]","v":"باث جل 30"},{"$f":"ROUND(Table1[[#This Row],[السعر]],2)","v":2.98}]
["بلسم 30",2.9350799999999997,"عبوة","هيلتون","جم","بلسم 30_هيلتون",{"$f":"Table1[[#This Row],[الصنف]]","v":"بلسم 30"},{"$f":"ROUND(Table1[[#This Row],[السعر]],2)","v":2.94}]
["لوشن 30",2.9571719999999999,"عبوة","هيلتون","جم","لوشن 30_هيلتون",{"$f":"Table1[[#This Row],[الصنف]]","v":"لوشن 30"},{"$f":"ROUND(Table1[[#This Row],[السعر]],2)","v":2.96}]
["شامبو  45",4.1501400000000004,"عبوة","هيلتون","جم","شامبو  45_هيلتون",{"$f":"Table1[[#This Row],[الصنف]]","v":"شامبو  45"},{"$f":"ROUND(Table1[[#This Row],[السعر]],2)","v":4.1500000000000004}]
["بادي ووش 45",4.734,"قطعة","هيلتون","جم","بادي ووش 45_هيلتون",{"$f":"Table1[[#This Row],[الصنف]]","v":"بادي ووش 45"},{"$f":"ROUND(Table1[[#This Row],[السعر]],2)","v":4.7300000000000004}]
["بلسم  45",4.2211499999999997,"عبوة","هيلتون","جم","بلسم  45_هيلتون",{"$f":"Table1[[#This Row],[الصنف]]","v":"بلسم  45"},{"$f":"ROUND(Table1[[#This Row],[السعر]],2)","v":4.22}]
["لوشن 45",4.3063619999999991,"عبوة","هيلتون","جم","لوشن 45_هيلتون",{"$f":"Table1[[#This Row],[الصنف]]","v":"لوشن 45"},{"$f":"ROUND(Table1[[#This Row],[السعر]],2)","v":4.3099999999999996}]
["مجموعة اسنان لوكس",9.0734999999999992,"قطعة","هيلتون","جم","مجموعة اسنان لوكس_هيلتون",{"$f":"Table1[[#This Row],[الصنف]]","v":"مجموعة اسنان لوكس"},{"$f":"ROUND(Table1[[#This Row],[السعر]],2)","v":9.07}]
["مجموعة اسنان",6.2709719999999995,"قطعة","هيلتون","جم","مجموعة اسنان_هيلتون",{"$f":"Table1[[#This Row],[الصنف]]","v":"مجموعة اسنان"},{"$f":"ROUND(Table1[[#This Row],[السعر]],2)","v":6.27}]
["مجموعة حلاقة",11.175396000000001,"قطعة","هيلتون","جم","مجموعة حلاقة_هيلتون",{"$f":"Table1[[#This Row],[الصنف]]","v":"مجموعة حلاقة"},{"$f":"ROUND(Table1[[#This Row],[السعر]],2)","v":11.18}]
["مجموعة حلاقة لوكس",14.927879999999998,"قطعة","هيلتون","جم","مجموعة حلاقة لوكس_هيلتون",{"$f":"Table1[[#This Row],[الصنف]]","v":"مجموعة حلاقة لوكس"},{"$f":"ROUND(Table1[[#This Row],[السعر]],2)","v":14.93}]
["لوف",9.2628599999999999,"قطعة","هيلتون","جم","لوف_هيلتون",{"$f":"Table1[[#This Row],[الصنف]]","v":"لوف"},{"$f":"ROUND(Table1[[#This Row],[السعر]],2)","v":9.26}]
["سيونج كيت",0.99098399999999986,"قطعة","هيلتون","جم","سيونج كيت_هيلتون",{"$f":"Table1[[#This Row],[الصنف]]","v":"سيونج كيت"},{"$f":"ROUND(Table1[[#This Row],[السعر]],2)","v":0.99}]
["شاور كاب",1.0351680000000001,"قطعة","هيلتون","جم","شاور كاب_هيلتون",{"$f":"Table1[[#This Row],[الصنف]]","v":"شاور كاب"},{"$f":"ROUND(Table1[[#This Row],[السعر]],2)","v":1.04}]
["قطن سوابس",0.75428399999999995,"قطعة","هيلتون","جم","قطن سوابس_هيلتون",{"$f":"Table1[[#This Row],[الصنف]]","v":"قطن سوابس"},{"$f":"ROUND(Table1[[#This Row],[السعر]],2)","v":0.75}]
["فينتي كيت",1.8857099999999998,"قطعة","هيلتون","جم","فينتي كيت_هيلتون",{"$f":"Table1[[#This Row],[الصنف]]","v":"فينتي كيت"},{"$f":"ROUND(Table1[[#This Row],[السعر]],2)","v":1.89}]
["شوميت",2.2880999999999996,"قطعة","هيلتون","جم","شوميت_هيلتون",{"$f":"Table1[[#This Row],[الصنف]]","v":"شوميت"},{"$f":"ROUND(Table1[[#This Row],[السعر]],2)","v":2.29}]
["لبيسة",1.5780000000000001,"قطعة","هيلتون","جم","لبيسة_هيلتون",{"$f":"Table1[[#This Row],[الصنف]]","v":"لبيسة"},{"$f":"ROUND(Table1[[#This Row],[السعر]],2)","v":1.58}]
["قطن ميكأب 2 ق",2.0987399999999998,"قطعة","هيلتون","جم","قطن ميكأب 2 ق_هيلتون",{"$f":"Table1[[#This Row],[الصنف]]","v":"قطن ميكأب 2 ق"},{"$f":"ROUND(Table1[[#This Row],[السعر]],2)","v":2.1}]
["مبرد",1.1803440000000001,"قطعة","هيلتون","جم","مبرد_هيلتون",{"$f":"Table1[[#This Row],[الصنف]]","v":"مبرد"},{"$f":"ROUND(Table1[[#This Row],[السعر]],2)","v":1.18}]
["مشط شعر",1.4359799999999998,"قطعة","هيلتون","جم","مشط شعر_هيلتون",{"$f":"Table1[[#This Row],[الصنف]]","v":"مشط شعر"},{"$f":"ROUND(Table1[[#This Row],[السعر]],2)","v":1.44}]
["غسول فم",4.0081199999999999,"عبوة","هيلتون","جم","غسول فم_هيلتون",{"$f":"Table1[[#This Row],[الصنف]]","v":"غسول فم"},{"$f":"ROUND(Table1[[#This Row],[السعر]],2)","v":4.01}]
["شبشب عادي",13.570799999999998,"قطعة","هيلتون","جم","شبشب عادي_هيلتون",{"$f":"Table1[[#This Row],[الصنف]]","v":"شبشب عادي"},{"$f":"ROUND(Table1[[#This Row],[السعر]],2)","v":13.57}]
["شبشب مميز",18.289020000000001,"قطعة","هيلتون","جم","شبشب مميز_هيلتون",{"$f":"Table1[[#This Row],[الصنف]]","v":"شبشب مميز"},{"$f":"ROUND(Table1[[#This Row],[السعر]],2)","v":18.29}]
["ملح حمام",8.3476200000000009,"قطعة","هيلتون","جم","ملح حمام_هيلتون",{"$f":"Table1[[#This Row],[الصنف]]","v":"ملح حمام"},{"$f":"ROUND(Table1[[#This Row],[السعر]],2)","v":8.35}]
["سنتري باج",1.6884599999999998,"قطعة","هيلتون","جم","سنتري باج_هيلتون",{"$f":"Table1[[#This Row],[الصنف]]","v":"سنتري باج"},{"$f":"ROUND(Table1[[#This Row],[السعر]],2)","v":1.69}]
["صابون 25",1.6229729999999998,"قطعة","هيلتون","جم","صابون 25_هيلتون",{"$f":"Table1[[#This Row],[الصنف]]","v":"صابون 25"},{"$f":"ROUND(Table1[[#This Row],[السعر]],2)","v":1.62}]
["صابون 35",2.5658279999999998,"قطعة","هيلتون","جم","صابون 35_هيلتون",{"$f":"Table1[[#This Row],[الصنف]]","v":"صابون 35"},{"$f":"ROUND(Table1[[#This Row],[السعر]],2)","v":2.57}]
["شامبو  40 ملل",5.55,"عبوة","JW MARRIOTT","جم","شامبو  40 ملل_JW MARRIOTT",{"$f":"Table1[[#This Row],[الصنف]]","v":"شامبو  40 ملل"},{"$f":"ROUND(Table1[[#This Row],[السعر]],2)","v":5.55}]
["باث جل 40 ملل",5.97,"عبوة","JW MARRIOTT","جم","باث جل 40 ملل_JW MARRIOTT",{"$f":"Table1[[#This Row],[الصنف]]","v":"باث جل 40 ملل"},{"$f":"ROUND(Table1[[#This Row],[السعر]],2)","v":5.97}]
["بلسم 40 ملل",5.55,"عبوة","JW MARRIOTT","جم","بلسم 40 ملل_JW MARRIOTT",{"$f":"Table1[[#This Row],[الصنف]]","v":"بلسم 40 ملل"},{"$f":"ROUND(Table1[[#This Row],[السعر]],2)","v":5.55}]
["لوشن 40 ملل",7.21,"عبوة","JW MARRIOTT","جم","لوشن 40 ملل_JW MARRIOTT",{"$f":"Table1[[#This Row],[الصنف]]","v":"لوشن 40 ملل"},{"$f":"ROUND(Table1[[#This Row],[السعر]],2)","v":7.21}]
["شامبو  80 ملل",8.5399999999999991,"عبوة","JW MARRIOTT","جم","شامبو  80 ملل_JW MARRIOTT",{"$f":"Table1[[#This Row],[الصنف]]","v":"شامبو  80 ملل"},{"$f":"ROUND(Table1[[#This Row],[السعر]],2)","v":8.5399999999999991}]
["باث جل 80 ملل",8.68,"عبوة","JW MARRIOTT","جم","باث جل 80 ملل_JW MARRIOTT",{"$f":"Table1[[#This Row],[الصنف]]","v":"باث جل 80 ملل"},{"$f":"ROUND(Table1[[#This Row],[السعر]],2)","v":8.68}]
["بلسم 80 ملل",8.7799999999999994,"عبوة","JW MARRIOTT","جم","بلسم 80 ملل_JW MARRIOTT",{"$f":"Table1[[#This Row],[الصنف]]","v":"بلسم 80 ملل"},{"$f":"ROUND(Table1[[#This Row],[السعر]],2)","v":8.7799999999999994}]
["لوشن 80 ملل",9.4,"عبوة","JW MARRIOTT","جم","لوشن 80 ملل_JW MARRIOTT",{"$f":"Table1[[#This Row],[الصنف]]","v":"لوشن 80 ملل"},{"$f":"ROUND(Table1[[#This Row],[السعر]],2)","v":9.4}]
["شاور كاب",3.67,"قطعة","JW MARRIOTT","جم","شاور كاب_JW MARRIOTT",{"$f":"Table1[[#This Row],[الصنف]]","v":"شاور كاب"},{"$f":"ROUND(Table1[[#This Row],[السعر]],2)","v":3.67}]
["سيونج كيت ",3.17,"قطعة","JW MARRIOTT","جم","سيونج كيت _JW MARRIOTT",{"$f":"Table1[[#This Row],[الصنف]]","v":"سيونج كيت "},{"$f":"ROUND(Table1[[#This Row],[السعر]],2)","v":3.17}]
["فينتي كيت ",3.94,"قطعة","JW MARRIOTT","جم","فينتي كيت _JW MARRIOTT",{"$f":"Table1[[#This Row],[الصنف]]","v":"فينتي كيت "},{"$f":"ROUND(Table1[[#This Row],[السعر]],2)","v":3.94}]
["غسول فم",6.67,"عبوة","JW MARRIOTT","جم","غسول فم_JW MARRIOTT",{"$f":"Table1[[#This Row],[الصنف]]","v":"غسول فم"},{"$f":"ROUND(Table1[[#This Row],[السعر]],2)","v":6.67}]
["شوميت",3.55,"قطعة","JW MARRIOTT","جم","شوميت_JW MARRIOTT",{"$f":"Table1[[#This Row],[الصنف]]","v":"شوميت"},{"$f":"ROUND(Table1[[#This Row],[السعر]],2)","v":3.55}]
["لوف",9.42,"قطعة","JW MARRIOTT","جم","لوف_JW MARRIOTT",{"$f":"Table1[[#This Row],[الصنف]]","v":"لوف"},{"$f":"ROUND(Table1[[#This Row],[السعر]],2)","v":9.42}]
["مجموعة اسنان",9.4499999999999993,"قطعة","JW MARRIOTT","جم","مجموعة اسنان_JW MARRIOTT",{"$f":"Table1[[#This Row],[الصنف]]","v":"مجموعة اسنان"},{"$f":"ROUND(Table1[[#This Row],[السعر]],2)","v":9.4499999999999993}]
["مجموعة حلاقة",9.26,"قطعة","JW MARRIOTT","جم","مجموعة حلاقة_JW MARRIOTT",{"$f":"Table1[[#This Row],[الصنف]]","v":"مجموعة حلاقة"},{"$f":"ROUND(Table1[[#This Row],[السعر]],2)","v":9.26}]
["مشط شعر",2.84,"قطعة","JW MARRIOTT","جم","مشط شعر_JW MARRIOTT",{"$f":"Table1[[#This Row],[الصنف]]","v":"مشط شعر"},{"$f":"ROUND(Table1[[#This Row],[السعر]],2)","v":2.84}]
["ملح حمام",5.05,"قطعة","JW MARRIOTT","جم","ملح حمام_JW MARRIOTT",{"$f":"Table1[[#This Row],[الصنف]]","v":"ملح حمام"},{"$f":"ROUND(Table1[[#This Row],[السعر]],2)","v":5.05}]
["سنتري باج",1.62,"قطعة","JW MARRIOTT","جم","سنتري باج_JW MARRIOTT",{"$f":"Table1[[#This Row],[الصنف]]","v":"سنتري باج"},{"$f":"ROUND(Table1[[#This Row],[السعر]],2)","v":1.62}]
["صابون 30 جم",5.07,"قطعة","JW MARRIOTT","جم","صابون 30 جم_JW MARRIOTT",{"$f":"Table1[[#This Row],[الصنف]]","v":"صابون 30 جم"},{"$f":"ROUND(Table1[[#This Row],[السعر]],2)","v":5.07}]
["صابون 50 جم",6.04,"قطعة","JW MARRIOTT","جم","صابون 50 جم_JW MARRIOTT",{"$f":"Table1[[#This Row],[الصنف]]","v":"صابون 50 جم"},{"$f":"ROUND(Table1[[#This Row],[السعر]],2)","v":6.04}]
["جراكن شامبو 4 لتر",168,"عبوة","JW MARRIOTT","جم","جراكن شامبو 4 لتر_JW MARRIOTT",{"$f":"Table1[[#This Row],[الصنف]]","v":"جراكن شامبو 4 لتر"},{"$f":"ROUND(Table1[[#This Row],[السعر]],2)","v":168}]
["جراكن شاور جل 4 لتر",168,"عبوة","JW MARRIOTT","جم","جراكن شاور جل 4 لتر_JW MARRIOTT",{"$f":"Table1[[#This Row],[الصنف]]","v":"جراكن شاور جل 4 لتر"},{"$f":"ROUND(Table1[[#This Row],[السعر]],2)","v":168}]
["جراكن هاند سوب 4 لتر",168,"عبوة","JW MARRIOTT","جم","جراكن هاند سوب 4 لتر_JW MARRIOTT",{"$f":"Table1[[#This Row],[الصنف]]","v":"جراكن هاند سوب 4 لتر"},{"$f":"ROUND(Table1[[#This Row],[السعر]],2)","v":168}]
["جراكن لوشن 4 لتر",184,"عبوة","JW MARRIOTT","جم","جراكن لوشن 4 لتر_JW MARRIOTT",{"$f":"Table1[[#This Row],[الصنف]]","v":"جراكن لوشن 4 لتر"},{"$f":"ROUND(Table1[[#This Row],[السعر]],2)","v":184}]
["قطن سوابس ",1.5,"قطعة","JW MARRIOTT","جم","قطن سوابس _JW MARRIOTT",{"$f":"Table1[[#This Row],[الصنف]]","v":"قطن سوابس "},{"$f":"ROUND(Table1[[#This Row],[السعر]],2)","v":1.5}]
["مشط شعر",1.7,"قطعة","JW MARRIOTT","جم","مشط شعر_JW MARRIOTT",{"$f":"Table1[[#This Row],[الصنف]]","v":"مشط شعر"},{"$f":"ROUND(Table1[[#This Row],[السعر]],2)","v":1.7}]
["شاور كاب",1.7,"قطعة","JW MARRIOTT","جم","شاور كاب_JW MARRIOTT",{"$f":"Table1[[#This Row],[الصنف]]","v":"شاور كاب"},{"$f":"ROUND(Table1[[#This Row],[السعر]],2)","v":1.7}]
["شاور كاب",3.67,"قطعة","JW MARRIOTT","جم","شاور كاب_JW MARRIOTT",{"$f":"Table1[[#This Row],[الصنف]]","v":"شاور كاب"},{"$f":"ROUND(Table1[[#This Row],[السعر]],2)","v":3.67}]
["فينتي كيت",3.94,"قطعة","JW MARRIOTT","جم","فينتي كيت_JW MARRIOTT",{"$f":"Table1[[#This Row],[الصنف]]","v":"فينتي كيت"},{"$f":"ROUND(Table1[[#This Row],[السعر]],2)","v":3.94}]
["مجموعة حلاقة",9.26,"قطعة","JW MARRIOTT","جم","مجموعة حلاقة_JW MARRIOTT",{"$f":"Table1[[#This Row],[الصنف]]","v":"مجموعة حلاقة"},{"$f":"ROUND(Table1[[#This Row],[السعر]],2)","v":9.26}]
["سنتري باج",1.62,"قطعة","JW MARRIOTT","جم","سنتري باج_JW MARRIOTT",{"$f":"Table1[[#This Row],[الصنف]]","v":"سنتري باج"},{"$f":"ROUND(Table1[[#This Row],[السعر]],2)","v":1.62}]
["شامبو  40 ملل",6.28,"عبوة","Dusit","جم","شامبو  40 ملل_Dusit",{"$f":"Table1[[#This Row],[الصنف]]","v":"شامبو  40 ملل"},{"$f":"ROUND(Table1[[#This Row],[السعر]],2)","v":6.28}]
["باث جل 40 ملل",6.75,"عبوة","Dusit","جم","باث جل 40 ملل_Dusit",{"$f":"Table1[[#This Row],[الصنف]]","v":"باث جل 40 ملل"},{"$f":"ROUND(Table1[[#This Row],[السعر]],2)","v":6.75}]
["بلسم 40 ملل",6.75,"عبوة","Dusit","جم","بلسم 40 ملل_Dusit",{"$f":"Table1[[#This Row],[الصنف]]","v":"بلسم 40 ملل"},{"$f":"ROUND(Table1[[#This Row],[السعر]],2)","v":6.75}]
["لوشن 40 ملل",7.22,"عبوة","Dusit","جم","لوشن 40 ملل_Dusit",{"$f":"Table1[[#This Row],[الصنف]]","v":"لوشن 40 ملل"},{"$f":"ROUND(Table1[[#This Row],[السعر]],2)","v":7.22}]
["شامبو  80 ملل",10.210000000000001,"عبوة","Dusit","جم",{"$f":"A67&\"_\"&D67","v":"شامبو  80 ملل_Dusit"},{"$f":"Table1[[#This Row],[الصنف]]","v":"شامبو  80 ملل"},{"$f":"ROUND(Table1[[#This Row],[السعر]],2)","v":10.210000000000001}]
["باث جل 80 ملل",10.71,"عبوة","Dusit","جم","باث جل 80 ملل_Dusit",{"$f":"Table1[[#This Row],[الصنف]]","v":"باث جل 80 ملل"},{"$f":"ROUND(Table1[[#This Row],[السعر]],2)","v":10.71}]
["بلسم 80 ملل",10.71,"عبوة","Dusit","جم","بلسم 80 ملل_Dusit",{"$f":"Table1[[#This Row],[الصنف]]","v":"بلسم 80 ملل"},{"$f":"ROUND(Table1[[#This Row],[السعر]],2)","v":10.71}]
["لوشن 80 ملل",11.93,"عبوة","Dusit","جم","لوشن 80 ملل_Dusit",{"$f":"Table1[[#This Row],[الصنف]]","v":"لوشن 80 ملل"},{"$f":"ROUND(Table1[[#This Row],[السعر]],2)","v":11.93}]
["شاور كاب",4.71,"قطعة","Dusit","جم","شاور كاب_Dusit",{"$f":"Table1[[#This Row],[الصنف]]","v":"شاور كاب"},{"$f":"ROUND(Table1[[#This Row],[السعر]],2)","v":4.71}]
["سيونج كيت ",4.24,"قطعة","Dusit","جم","سيونج كيت _Dusit",{"$f":"Table1[[#This Row],[الصنف]]","v":"سيونج كيت "},{"$f":"ROUND(Table1[[#This Row],[السعر]],2)","v":4.24}]
["قطن سوابس",3.25,"قطعة","Dusit","جم","قطن سوابس_Dusit",{"$f":"Table1[[#This Row],[الصنف]]","v":"قطن سوابس"},{"$f":"ROUND(Table1[[#This Row],[السعر]],2)","v":3.25}]
["فينتي كيت ",5.0199999999999996,"قطعة","Dusit","جم","فينتي كيت _Dusit",{"$f":"Table1[[#This Row],[الصنف]]","v":"فينتي كيت "},{"$f":"ROUND(Table1[[#This Row],[السعر]],2)","v":5.0199999999999996}]
["غسول فم",11.93,"عبوة","Dusit","جم","غسول فم_Dusit",{"$f":"Table1[[#This Row],[الصنف]]","v":"غسول فم"},{"$f":"ROUND(Table1[[#This Row],[السعر]],2)","v":11.93}]
["شوميت",4.24,"قطعة","Dusit","جم","شوميت_Dusit",{"$f":"Table1[[#This Row],[الصنف]]","v":"شوميت"},{"$f":"ROUND(Table1[[#This Row],[السعر]],2)","v":4.24}]
["لوف",11.62,"قطعة","Dusit","جم","لوف_Dusit",{"$f":"Table1[[#This Row],[الصنف]]","v":"لوف"},{"$f":"ROUND(Table1[[#This Row],[السعر]],2)","v":11.62}]
["مجموعة اسنان",10.99,"قطعة","Dusit","جم","مجموعة اسنان_Dusit",{"$f":"Table1[[#This Row],[الصنف]]","v":"مجموعة اسنان"},{"$f":"ROUND(Table1[[#This Row],[السعر]],2)","v":10.99}]
["مجموعة حلاقة",9.26,"قطعة","Dusit","جم","مجموعة حلاقة_Dusit",{"$f":"Table1[[#This Row],[الصنف]]","v":"مجموعة حلاقة"},{"$f":"ROUND(Table1[[#This Row],[السعر]],2)","v":9.26}]
["مشط شعر",4.24,"قطعة","Dusit","جم","مشط شعر_Dusit",{"$f":"Table1[[#This Row],[الصنف]]","v":"مشط شعر"},{"$f":"ROUND(Table1[[#This Row],[السعر]],2)","v":4.24}]
["ملح حمام",8.48,"قطعة","Dusit","جم","ملح حمام_Dusit",{"$f":"Table1[[#This Row],[الصنف]]","v":"ملح حمام"},{"$f":"ROUND(Table1[[#This Row],[السعر]],2)","v":8.48}]
["سنتري باج",2.83,"قطعة","Dusit","جم","سنتري باج_Dusit",{"$f":"Table1[[#This Row],[الصنف]]","v":"سنتري باج"},{"$f":"ROUND(Table1[[#This Row],[السعر]],2)","v":2.83}]
["صابون 30 جم",5.75,"قطعة","Dusit","جم","صابون 30 جم_Dusit",{"$f":"Table1[[#This Row],[الصنف]]","v":"صابون 30 جم"},{"$f":"ROUND(Table1[[#This Row],[السعر]],2)","v":5.75}]
["صابون 50 جم",7.69,"قطعة","Dusit","جم","صابون 50 جم_Dusit",{"$f":"Table1[[#This Row],[الصنف]]","v":"صابون 50 جم"},{"$f":"ROUND(Table1[[#This Row],[السعر]],2)","v":7.69}]
["شامبو 40 ملل",5.1974999999999998,"عبوة","سوفتيل الجزيرة","جم","شامبو 40 ملل_سوفتيل الجزيرة",{"$f":"Table1[[#This Row],[الصنف]]","v":"شامبو 40 ملل"},{"$f":"ROUND(Table1[[#This Row],[السعر]],2)","v":5.2}]
["شاور جل 40 ملل",5.1974999999999998,"عبوة","سوفتيل الجزيرة","جم","شاور جل 40 ملل_سوفتيل الجزيرة",{"$f":"Table1[[#This Row],[الصنف]]","v":"شاور جل 40 ملل"},{"$f":"ROUND(Table1[[#This Row],[السعر]],2)","v":5.2}]
["بلسم 40 ملل",5.1974999999999998,"عبوة","سوفتيل الجزيرة","جم","بلسم 40 ملل_سوفتيل الجزيرة",{"$f":"Table1[[#This Row],[الصنف]]","v":"بلسم 40 ملل"},{"$f":"ROUND(Table1[[#This Row],[السعر]],2)","v":5.2}]
["لوشن 40 ملل",6.46,"عبوة","سوفتيل الجزيرة","جم","لوشن 40 ملل_سوفتيل الجزيرة",{"$f":"Table1[[#This Row],[الصنف]]","v":"لوشن 40 ملل"},{"$f":"ROUND(Table1[[#This Row],[السعر]],2)","v":6.46}]
["شامبو تيوب 80",8.173,"عبوة","سوفتيل الجزيرة","جم","شامبو تيوب 80_سوفتيل الجزيرة",{"$f":"Table1[[#This Row],[الصنف]]","v":"شامبو تيوب 80"},{"$f":"ROUND(Table1[[#This Row],[السعر]],2)","v":8.17}]
["بادي ووش تيوب 80",8.173,"قطعة","سوفتيل الجزيرة","جم","بادي ووش تيوب 80_سوفتيل الجزيرة",{"$f":"Table1[[#This Row],[الصنف]]","v":"بادي ووش تيوب 80"},{"$f":"ROUND(Table1[[#This Row],[السعر]],2)","v":8.17}]
["بلسم تيوب 80",8.173,"عبوة","سوفتيل الجزيرة","جم","بلسم تيوب 80_سوفتيل الجزيرة",{"$f":"Table1[[#This Row],[الصنف]]","v":"بلسم تيوب 80"},{"$f":"ROUND(Table1[[#This Row],[السعر]],2)","v":8.17}]
["لوشن تيوب 80",10.175000000000001,"عبوة","سوفتيل الجزيرة","جم","لوشن تيوب 80_سوفتيل الجزيرة",{"$f":"Table1[[#This Row],[الصنف]]","v":"لوشن تيوب 80"},{"$f":"ROUND(Table1[[#This Row],[السعر]],2)","v":10.18}]
["شاور كاب",3.4,"قطعة","سوفتيل الجزيرة","جم","شاور كاب_سوفتيل الجزيرة",{"$f":"Table1[[#This Row],[الصنف]]","v":"شاور كاب"},{"$f":"ROUND(Table1[[#This Row],[السعر]],2)","v":3.4}]
["سيونج كيت ",2.972,"قطعة","سوفتيل الجزيرة","جم","سيونج كيت _سوفتيل الجزيرة",{"$f":"Table1[[#This Row],[الصنف]]","v":"سيونج كيت "},{"$f":"ROUND(Table1[[#This Row],[السعر]],2)","v":2.97}]
["مجموعة اسنان",8.6,"قطعة","سوفتيل الجزيرة","جم","مجموعة اسنان_سوفتيل الجزيرة",{"$f":"Table1[[#This Row],[الصنف]]","v":"مجموعة اسنان"},{"$f":"ROUND(Table1[[#This Row],[السعر]],2)","v":8.6}]
["مجموعة حلاقة",7.8,"قطعة","سوفتيل الجزيرة","جم","مجموعة حلاقة_سوفتيل الجزيرة",{"$f":"Table1[[#This Row],[الصنف]]","v":"مجموعة حلاقة"},{"$f":"ROUND(Table1[[#This Row],[السعر]],2)","v":7.8}]
["قطن سوابس 3 عود",2,"قطعة","سوفتيل الجزيرة","جم","قطن سوابس 3 عود_سوفتيل الجزيرة",{"$f":"Table1[[#This Row],[الصنف]]","v":"قطن سوابس 3 عود"},{"$f":"ROUND(Table1[[#This Row],[السعر]],2)","v":2}]
["قطن سوابس 2 عود",2.1,"قطعة","سوفتيل الجزيرة","جم","قطن سوابس 2 عود_سوفتيل الجزيرة",{"$f":"Table1[[#This Row],[الصنف]]","v":"قطن سوابس 2 عود"},{"$f":"ROUND(Table1[[#This Row],[السعر]],2)","v":2.1}]
["قطن ميكأب",2.2999999999999998,"قطعة","سوفتيل الجزيرة","جم","قطن ميكأب_سوفتيل الجزيرة",{"$f":"Table1[[#This Row],[الصنف]]","v":"قطن ميكأب"},{"$f":"ROUND(Table1[[#This Row],[السعر]],2)","v":2.2999999999999998}]
["صابون 30",4.7309999999999999,"قطعة","سوفتيل الجزيرة","جم","صابون 30_سوفتيل الجزيرة",{"$f":"Table1[[#This Row],[الصنف]]","v":"صابون 30"},{"$f":"ROUND(Table1[[#This Row],[السعر]],2)","v":4.7300000000000004}]
["صابون 50",6.3380000000000001,"قطعة","سوفتيل الجزيرة","جم","صابون 50_سوفتيل الجزيرة",{"$f":"Table1[[#This Row],[الصنف]]","v":"صابون 50"},{"$f":"ROUND(Table1[[#This Row],[السعر]],2)","v":6.34}]
["شاور كاب",0.95,"قطعة","جاز","جم","شاور كاب_جاز",{"$f":"Table1[[#This Row],[الصنف]]","v":"شاور كاب"},{"$f":"ROUND(Table1[[#This Row],[السعر]],2)","v":0.95}]
["سيونج كيت ",0.85,"قطعة","جاز","جم","سيونج كيت _جاز",{"$f":"Table1[[#This Row],[الصنف]]","v":"سيونج كيت "},{"$f":"ROUND(Table1[[#This Row],[السعر]],2)","v":0.85}]
["قطن سوابس",0.85,"قطعة","جاز","جم","قطن سوابس_جاز",{"$f":"Table1[[#This Row],[الصنف]]","v":"قطن سوابس"},{"$f":"ROUND(Table1[[#This Row],[السعر]],2)","v":0.85}]
["قطن ميكأب ( 1 قطعة )",1.1000000000000001,"قطعة","جاز","جم","قطن ميكأب ( 1 قطعة )_جاز",{"$f":"Table1[[#This Row],[الصنف]]","v":"قطن ميكأب ( 1 قطعة )"},{"$f":"ROUND(Table1[[#This Row],[السعر]],2)","v":1.1000000000000001}]
["قطن ميكأب ( 2 قطعة )",1.75,"قطعة","جاز","جم","قطن ميكأب ( 2 قطعة )_جاز",{"$f":"Table1[[#This Row],[الصنف]]","v":"قطن ميكأب ( 2 قطعة )"},{"$f":"ROUND(Table1[[#This Row],[السعر]],2)","v":1.75}]
["فينتي كيت",3,"قطعة","جاز","جم","فينتي كيت_جاز",{"$f":"Table1[[#This Row],[الصنف]]","v":"فينتي كيت"},{"$f":"ROUND(Table1[[#This Row],[السعر]],2)","v":3}]
["غسول فم",4,"عبوة","جاز","جم","غسول فم_جاز",{"$f":"Table1[[#This Row],[الصنف]]","v":"غسول فم"},{"$f":"ROUND(Table1[[#This Row],[السعر]],2)","v":4}]
["شوميت",2,"قطعة","جاز","جم","شوميت_جاز",{"$f":"Table1[[#This Row],[الصنف]]","v":"شوميت"},{"$f":"ROUND(Table1[[#This Row],[السعر]],2)","v":2}]
["لوف",4.25,"قطعة","جاز","جم","لوف_جاز",{"$f":"Table1[[#This Row],[الصنف]]","v":"لوف"},{"$f":"ROUND(Table1[[#This Row],[السعر]],2)","v":4.25}]
["مجموعة اسنان",5.5,"قطعة","جاز","جم","مجموعة اسنان_جاز",{"$f":"Table1[[#This Row],[الصنف]]","v":"مجموعة اسنان"},{"$f":"ROUND(Table1[[#This Row],[السعر]],2)","v":5.5}]
["مجموعة حلاقة",5.5,"قطعة","جاز","جم","مجموعة حلاقة_جاز",{"$f":"Table1[[#This Row],[الصنف]]","v":"مجموعة حلاقة"},{"$f":"ROUND(Table1[[#This Row],[السعر]],2)","v":5.5}]
["مشط شعر",1.5,"قطعة","جاز","جم","مشط شعر_جاز",{"$f":"Table1[[#This Row],[الصنف]]","v":"مشط شعر"},{"$f":"ROUND(Table1[[#This Row],[السعر]],2)","v":1.5}]
["ملح حمام",4.5,"قطعة","جاز","جم","ملح حمام_جاز",{"$f":"Table1[[#This Row],[الصنف]]","v":"ملح حمام"},{"$f":"ROUND(Table1[[#This Row],[السعر]],2)","v":4.5}]
["سنتري باج",1,"قطعة","جاز","جم","سنتري باج_جاز",{"$f":"Table1[[#This Row],[الصنف]]","v":"سنتري باج"},{"$f":"ROUND(Table1[[#This Row],[السعر]],2)","v":1}]
["مبرد",1,"قطعة","جاز","جم","مبرد_جاز",{"$f":"Table1[[#This Row],[الصنف]]","v":"مبرد"},{"$f":"ROUND(Table1[[#This Row],[السعر]],2)","v":1}]
["لبيسة",1.5,"قطعة","جاز","جم","لبيسة_جاز",{"$f":"Table1[[#This Row],[الصنف]]","v":"لبيسة"},{"$f":"ROUND(Table1[[#This Row],[السعر]],2)","v":1.5}]
["صابون 25 جم",2,"قطعة","جاز","جم","صابون 25 جم_جاز",{"$f":"Table1[[#This Row],[الصنف]]","v":"صابون 25 جم"},{"$f":"ROUND(Table1[[#This Row],[السعر]],2)","v":2}]
["صابون 35 جم",2.4,"قطعة","جاز","جم","صابون 35 جم_جاز",{"$f":"Table1[[#This Row],[الصنف]]","v":"صابون 35 جم"},{"$f":"ROUND(Table1[[#This Row],[السعر]],2)","v":2.4}]
["صابون 50 جم",3.75,"قطعة","جاز","جم","صابون 50 جم_جاز",{"$f":"Table1[[#This Row],[الصنف]]","v":"صابون 50 جم"},{"$f":"ROUND(Table1[[#This Row],[السعر]],2)","v":3.75}]
["شامبو 30 ملل",1.9,"عبوة","شتايجن","جم","شامبو 30 ملل_شتايجن",{"$f":"Table1[[#This Row],[الصنف]]","v":"شامبو 30 ملل"},{"$f":"ROUND(Table1[[#This Row],[السعر]],2)","v":1.9}]
["رغوة 30 ملل",1.9,"عبوة","شتايجن","جم","رغوة 30 ملل_شتايجن",{"$f":"Table1[[#This Row],[الصنف]]","v":"رغوة 30 ملل"},{"$f":"ROUND(Table1[[#This Row],[السعر]],2)","v":1.9}]
["بلسم 30 ملل",2.15,"عبوة","شتايجن","جم","بلسم 30 ملل_شتايجن",{"$f":"Table1[[#This Row],[الصنف]]","v":"بلسم 30 ملل"},{"$f":"ROUND(Table1[[#This Row],[السعر]],2)","v":2.15}]
["لوشن 30 ملل",2.15,"عبوة","شتايجن","جم","لوشن 30 ملل_شتايجن",{"$f":"Table1[[#This Row],[الصنف]]","v":"لوشن 30 ملل"},{"$f":"ROUND(Table1[[#This Row],[السعر]],2)","v":2.15}]
["شاور كاب",0.95,"قطعة","شتايجن","جم","شاور كاب_شتايجن",{"$f":"Table1[[#This Row],[الصنف]]","v":"شاور كاب"},{"$f":"ROUND(Table1[[#This Row],[السعر]],2)","v":0.95}]
["سيونج كيت ",0.85,"قطعة","شتايجن","جم","سيونج كيت _شتايجن",{"$f":"Table1[[#This Row],[الصنف]]","v":"سيونج كيت "},{"$f":"ROUND(Table1[[#This Row],[السعر]],2)","v":0.85}]
["قطن سوابس",0.85,"قطعة","شتايجن","جم","قطن سوابس_شتايجن",{"$f":"Table1[[#This Row],[الصنف]]","v":"قطن سوابس"},{"$f":"ROUND(Table1[[#This Row],[السعر]],2)","v":0.85}]
["قطن ميكأب ( 1 قطعة )",1.1000000000000001,"قطعة","شتايجن","جم","قطن ميكأب ( 1 قطعة )_شتايجن",{"$f":"Table1[[#This Row],[الصنف]]","v":"قطن ميكأب ( 1 قطعة )"},{"$f":"ROUND(Table1[[#This Row],[السعر]],2)","v":1.1000000000000001}]
["قطن ميكأب ( 2 قطعة )",1.75,"قطعة","شتايجن","جم","قطن ميكأب ( 2 قطعة )_شتايجن",{"$f":"Table1[[#This Row],[الصنف]]","v":"قطن ميكأب ( 2 قطعة )"},{"$f":"ROUND(Table1[[#This Row],[السعر]],2)","v":1.75}]
["فينتي كيت ",3,"قطعة","شتايجن","جم","فينتي كيت _شتايجن",{"$f":"Table1[[#This Row],[الصنف]]","v":"فينتي كيت "},{"$f":"ROUND(Table1[[#This Row],[السعر]],2)","v":3}]
["غسول فم",4,"عبوة","شتايجن","جم",{"$f":"A131&\"_\"&D131","v":"غسول فم_شتايجن"},{"$f":"Table1[[#This Row],[الصنف]]","v":"غسول فم"},{"$f":"ROUND(Table1[[#This Row],[السعر]],2)","v":4}]
["شوميت",2,"قطعة","شتايجن","جم","شوميت_شتايجن",{"$f":"Table1[[#This Row],[الصنف]]","v":"شوميت"},{"$f":"ROUND(Table1[[#This Row],[السعر]],2)","v":2}]
["لوف",4.25,"قطعة","شتايجن","جم","لوف_شتايجن",{"$f":"Table1[[#This Row],[الصنف]]","v":"لوف"},{"$f":"ROUND(Table1[[#This Row],[السعر]],2)","v":4.25}]
["مجموعة اسنان",5.5,"قطعة","شتايجن","جم","مجموعة اسنان_شتايجن",{"$f":"Table1[[#This Row],[الصنف]]","v":"مجموعة اسنان"},{"$f":"ROUND(Table1[[#This Row],[السعر]],2)","v":5.5}]
["مجموعة حلاقة",5.5,"قطعة","شتايجن","جم","مجموعة حلاقة_شتايجن",{"$f":"Table1[[#This Row],[الصنف]]","v":"مجموعة حلاقة"},{"$f":"ROUND(Table1[[#This Row],[السعر]],2)","v":5.5}]
["مشط شعر",1.5,"قطعة","شتايجن","جم","مشط شعر_شتايجن",{"$f":"Table1[[#This Row],[الصنف]]","v":"مشط شعر"},{"$f":"ROUND(Table1[[#This Row],[السعر]],2)","v":1.5}]
["شاور كاب بدون علبة",0.85,"قطعة","شتايجن","جم","شاور كاب بدون علبة_شتايجن",{"$f":"Table1[[#This Row],[الصنف]]","v":"شاور كاب بدون علبة"},{"$f":"ROUND(Table1[[#This Row],[السعر]],2)","v":0.85}]
["سنتري باج",1,"قطعة","شتايجن","جم","سنتري باج_شتايجن",{"$f":"Table1[[#This Row],[الصنف]]","v":"سنتري باج"},{"$f":"ROUND(Table1[[#This Row],[السعر]],2)","v":1}]
["مبرد",1,"قطعة","شتايجن","جم","مبرد_شتايجن",{"$f":"Table1[[#This Row],[الصنف]]","v":"مبرد"},{"$f":"ROUND(Table1[[#This Row],[السعر]],2)","v":1}]
["لبيسة",1.5,"قطعة","شتايجن","جم","لبيسة_شتايجن",{"$f":"Table1[[#This Row],[الصنف]]","v":"لبيسة"},{"$f":"ROUND(Table1[[#This Row],[السعر]],2)","v":1.5}]
["صابون 25 جم",2,"قطعة","شتايجن","جم","صابون 25 جم_شتايجن",{"$f":"Table1[[#This Row],[الصنف]]","v":"صابون 25 جم"},{"$f":"ROUND(Table1[[#This Row],[السعر]],2)","v":2}]
["صابون 35 جم",2.4,"قطعة","شتايجن","جم","صابون 35 جم_شتايجن",{"$f":"Table1[[#This Row],[الصنف]]","v":"صابون 35 جم"},{"$f":"ROUND(Table1[[#This Row],[السعر]],2)","v":2.4}]
["صابون 50 جم",3.75,"قطعة","شتايجن","جم","صابون 50 جم_شتايجن",{"$f":"Table1[[#This Row],[الصنف]]","v":"صابون 50 جم"},{"$f":"ROUND(Table1[[#This Row],[السعر]],2)","v":3.75}]
["علب اسنان مطبوعة فارغة",0.85,"قطعة","شتايجن","جم","علب اسنان مطبوعة فارغة_شتايجن",{"$f":"Table1[[#This Row],[الصنف]]","v":"علب اسنان مطبوعة فارغة"},{"$f":"ROUND(Table1[[#This Row],[السعر]],2)","v":0.85}]
["علب لوف مطبوعة فارغة",0.95,"عبوة","شتايجن","جم","علب لوف مطبوعة فارغة_شتايجن",{"$f":"Table1[[#This Row],[الصنف]]","v":"علب لوف مطبوعة فارغة"},{"$f":"ROUND(Table1[[#This Row],[السعر]],2)","v":0.95}]
["علب سنتري مطبوعة فارغة",0.3,"عبوة","شتايجن","جم","علب سنتري مطبوعة فارغة_شتايجن",{"$f":"Table1[[#This Row],[الصنف]]","v":"علب سنتري مطبوعة فارغة"},{"$f":"ROUND(Table1[[#This Row],[السعر]],2)","v":0.3}]
["علب سيونج كيت مطبوعة فارغة",0.33,"عبوة","شتايجن","جم","علب سيونج كيت مطبوعة فارغة_شتايجن",{"$f":"Table1[[#This Row],[الصنف]]","v":"علب سيونج كيت مطبوعة فارغة"},{"$f":"ROUND(Table1[[#This Row],[السعر]],2)","v":0.33}]
["علب حلاقة مطبوعة فارغة",0.85,"قطعة","شتايجن","جم","علب حلاقة مطبوعة فارغة_شتايجن",{"$f":"Table1[[#This Row],[الصنف]]","v":"علب حلاقة مطبوعة فارغة"},{"$f":"ROUND(Table1[[#This Row],[السعر]],2)","v":0.85}]
["علب شوميت مطبوعة فارغة",0.71,"عبوة","شتايجن","جم","علب شوميت مطبوعة فارغة_شتايجن",{"$f":"Table1[[#This Row],[الصنف]]","v":"علب شوميت مطبوعة فارغة"},{"$f":"ROUND(Table1[[#This Row],[السعر]],2)","v":0.71}]
["علب قطن ميكأب مطبوعة فارغة",0.47,"عبوة","شتايجن","جم","علب قطن ميكأب مطبوعة فارغة_شتايجن",{"$f":"Table1[[#This Row],[الصنف]]","v":"علب قطن ميكأب مطبوعة فارغة"},{"$f":"ROUND(Table1[[#This Row],[السعر]],2)","v":0.47}]
["علب شاور كاب ميكأب مطبوعة فارغة",0.47,"عبوة","شتايجن","جم","علب شاور كاب ميكأب مطبوعة فارغة_شتايجن",{"$f":"Table1[[#This Row],[الصنف]]","v":"علب شاور كاب ميكأب مطبوعة فارغة"},{"$f":"ROUND(Table1[[#This Row],[السعر]],2)","v":0.47}]
["شاور كاب بدون علبة",0.85,"قطعة","شتايجن","جم","شاور كاب بدون علبة_شتايجن",{"$f":"Table1[[#This Row],[الصنف]]","v":"شاور كاب بدون علبة"},{"$f":"ROUND(Table1[[#This Row],[السعر]],2)","v":0.85}]
["قطن سوابس بدون علبة",0.6,"قطعة","شتايجن","جم","قطن سوابس بدون علبة_شتايجن",{"$f":"Table1[[#This Row],[الصنف]]","v":"قطن سوابس بدون علبة"},{"$f":"ROUND(Table1[[#This Row],[السعر]],2)","v":0.6}]
["قطن ميكأب بدون علبة",1.4,"قطعة","شتايجن","جم","قطن ميكأب بدون علبة_شتايجن",{"$f":"Table1[[#This Row],[الصنف]]","v":"قطن ميكأب بدون علبة"},{"$f":"ROUND(Table1[[#This Row],[السعر]],2)","v":1.4}]
["مبرد بدون علبة",0.8,"قطعة","شتايجن","جم","مبرد بدون علبة_شتايجن",{"$f":"Table1[[#This Row],[الصنف]]","v":"مبرد بدون علبة"},{"$f":"ROUND(Table1[[#This Row],[السعر]],2)","v":0.8}]
["صابون 25 جم",2.25,"قطعة","نايل بالاس","جم","صابون 25 جم_نايل بالاس",{"$f":"Table1[[#This Row],[الصنف]]","v":"صابون 25 جم"},{"$f":"ROUND(Table1[[#This Row],[السعر]],2)","v":2.25}]
["لوف",6.25,"قطعة","جراند اوشن السخنة","جم","لوف_جراند اوشن السخنة",{"$f":"Table1[[#This Row],[الصنف]]","v":"لوف"},{"$f":"ROUND(Table1[[#This Row],[السعر]],2)","v":6.25}]
["مجموعة اسنان",7.25,"قطعة","جراند اوشن السخنة","جم","مجموعة اسنان_جراند اوشن السخنة",{"$f":"Table1[[#This Row],[الصنف]]","v":"مجموعة اسنان"},{"$f":"ROUND(Table1[[#This Row],[السعر]],2)","v":7.25}]
["مجموعة حلاقة",7.25,"قطعة","جراند اوشن السخنة","جم","مجموعة حلاقة_جراند اوشن السخنة",{"$f":"Table1[[#This Row],[الصنف]]","v":"مجموعة حلاقة"},{"$f":"ROUND(Table1[[#This Row],[السعر]],2)","v":7.25}]
["سنتري باج",1.4,"قطعة","جراند اوشن السخنة","جم","سنتري باج_جراند اوشن السخنة",{"$f":"Table1[[#This Row],[الصنف]]","v":"سنتري باج"},{"$f":"ROUND(Table1[[#This Row],[السعر]],2)","v":1.4}]
["لبيسة",2.5,"قطعة","جراند اوشن السخنة","جم","لبيسة_جراند اوشن السخنة",{"$f":"Table1[[#This Row],[الصنف]]","v":"لبيسة"},{"$f":"ROUND(Table1[[#This Row],[السعر]],2)","v":2.5}]
["سليبر",17,"قطعة","جراند اوشن السخنة","جم","سليبر_جراند اوشن السخنة",{"$f":"Table1[[#This Row],[الصنف]]","v":"سليبر"},{"$f":"ROUND(Table1[[#This Row],[السعر]],2)","v":17}]
["شامبو  40 ملل vip",6.5,"عبوة","جراند اوشن السخنة","جم","شامبو  40 ملل vip_جراند اوشن السخنة",{"$f":"Table1[[#This Row],[الصنف]]","v":"شامبو  40 ملل vip"},{"$f":"ROUND(Table1[[#This Row],[السعر]],2)","v":6.5}]
["باث جل 40 ملل vip",6.5,"عبوة","جراند اوشن السخنة","جم","باث جل 40 ملل vip_جراند اوشن السخنة",{"$f":"Table1[[#This Row],[الصنف]]","v":"باث جل 40 ملل vip"},{"$f":"ROUND(Table1[[#This Row],[السعر]],2)","v":6.5}]
["بلسم 40 ملل vip",7.5,"عبوة","جراند اوشن السخنة","جم","بلسم 40 ملل vip_جراند اوشن السخنة",{"$f":"Table1[[#This Row],[الصنف]]","v":"بلسم 40 ملل vip"},{"$f":"ROUND(Table1[[#This Row],[السعر]],2)","v":7.5}]
["لوشن 40 ملل vip",7.5,"عبوة","جراند اوشن السخنة","جم","لوشن 40 ملل vip_جراند اوشن السخنة",{"$f":"Table1[[#This Row],[الصنف]]","v":"لوشن 40 ملل vip"},{"$f":"ROUND(Table1[[#This Row],[السعر]],2)","v":7.5}]
["شامبو  40 ملل",3.9473684210526319,"عبوة","الماسة","جم","شامبو  40 ملل_الماسة",{"$f":"Table1[[#This Row],[الصنف]]","v":"شامبو  40 ملل"},{"$f":"ROUND(Table1[[#This Row],[السعر]],2)","v":3.95}]
["باث جل 40 ملل",3.9473684210526319,"عبوة","الماسة","جم","باث جل 40 ملل_الماسة",{"$f":"Table1[[#This Row],[الصنف]]","v":"باث جل 40 ملل"},{"$f":"ROUND(Table1[[#This Row],[السعر]],2)","v":3.95}]
["بلسم 40 ملل",4.2456140350877192,"عبوة","الماسة","جم","بلسم 40 ملل_الماسة",{"$f":"Table1[[#This Row],[الصنف]]","v":"بلسم 40 ملل"},{"$f":"ROUND(Table1[[#This Row],[السعر]],2)","v":4.25}]
["لوشن 40 ملل",4.2456140350877192,"عبوة","الماسة","جم","لوشن 40 ملل_الماسة",{"$f":"Table1[[#This Row],[الصنف]]","v":"لوشن 40 ملل"},{"$f":"ROUND(Table1[[#This Row],[السعر]],2)","v":4.25}]
["شاور كاب",1.4035087719298247,"قطعة","الماسة","جم","شاور كاب_الماسة",{"$f":"Table1[[#This Row],[الصنف]]","v":"شاور كاب"},{"$f":"ROUND(Table1[[#This Row],[السعر]],2)","v":1.4}]
["سيونج كيت ",1.4035087719298247,"قطعة","الماسة","جم","سيونج كيت _الماسة",{"$f":"Table1[[#This Row],[الصنف]]","v":"سيونج كيت "},{"$f":"ROUND(Table1[[#This Row],[السعر]],2)","v":1.4}]
["فينتي كيت ",2.6315789473684212,"قطعة","الماسة","جم","فينتي كيت _الماسة",{"$f":"Table1[[#This Row],[الصنف]]","v":"فينتي كيت "},{"$f":"ROUND(Table1[[#This Row],[السعر]],2)","v":2.63}]
["قطن سوابس",1.7543859649122808,"قطعة","الماسة","جم","قطن سوابس_الماسة",{"$f":"Table1[[#This Row],[الصنف]]","v":"قطن سوابس"},{"$f":"ROUND(Table1[[#This Row],[السعر]],2)","v":1.75}]
["قطن ميكأب",1.7543859649122808,"قطعة","الماسة","جم","قطن ميكأب_الماسة",{"$f":"Table1[[#This Row],[الصنف]]","v":"قطن ميكأب"},{"$f":"ROUND(Table1[[#This Row],[السعر]],2)","v":1.75}]
["شوميت",2.5000000000000004,"قطعة","الماسة","جم","شوميت_الماسة",{"$f":"Table1[[#This Row],[الصنف]]","v":"شوميت"},{"$f":"ROUND(Table1[[#This Row],[السعر]],2)","v":2.5}]
["لوف",5.4824561403508776,"قطعة","الماسة","جم","لوف_الماسة",{"$f":"Table1[[#This Row],[الصنف]]","v":"لوف"},{"$f":"ROUND(Table1[[#This Row],[السعر]],2)","v":5.48}]
["مجموعة اسنان",6.1403508771929829,"قطعة","الماسة","جم","مجموعة اسنان_الماسة",{"$f":"Table1[[#This Row],[الصنف]]","v":"مجموعة اسنان"},{"$f":"ROUND(Table1[[#This Row],[السعر]],2)","v":6.14}]
["مجموعة حلاقة",7.2456140350877201,"قطعة","الماسة","جم","مجموعة حلاقة_الماسة",{"$f":"Table1[[#This Row],[الصنف]]","v":"مجموعة حلاقة"},{"$f":"ROUND(Table1[[#This Row],[السعر]],2)","v":7.25}]
["مشط شعر",1.7543859649122808,"قطعة","الماسة","جم","مشط شعر_الماسة",{"$f":"Table1[[#This Row],[الصنف]]","v":"مشط شعر"},{"$f":"ROUND(Table1[[#This Row],[السعر]],2)","v":1.75}]
["لبيسة",2,"قطعة","الماسة","جم","لبيسة_الماسة",{"$f":"Table1[[#This Row],[الصنف]]","v":"لبيسة"},{"$f":"ROUND(Table1[[#This Row],[السعر]],2)","v":2}]
["مبرد",1.8859649122807018,"قطعة","الماسة","جم","مبرد_الماسة",{"$f":"Table1[[#This Row],[الصنف]]","v":"مبرد"},{"$f":"ROUND(Table1[[#This Row],[السعر]],2)","v":1.89}]
["سليبر",15.350877192982457,"قطعة","الماسة","جم","سليبر_الماسة",{"$f":"Table1[[#This Row],[الصنف]]","v":"سليبر"},{"$f":"ROUND(Table1[[#This Row],[السعر]],2)","v":15.35}]
["صابون 35 جم",3,"قطعة","الماسة","جم","صابون 35 جم_الماسة",{"$f":"Table1[[#This Row],[الصنف]]","v":"صابون 35 جم"},{"$f":"ROUND(Table1[[#This Row],[السعر]],2)","v":3}]
["صابون 50 جم",4,"قطعة","الماسة","جم","صابون 50 جم_الماسة",{"$f":"Table1[[#This Row],[الصنف]]","v":"صابون 50 جم"},{"$f":"ROUND(Table1[[#This Row],[السعر]],2)","v":4}]
["شامبو  35 ملل",2.8,"عبوة","سيتي فرست","جم","شامبو  35 ملل_سيتي فرست",{"$f":"Table1[[#This Row],[الصنف]]","v":"شامبو  35 ملل"},{"$f":"ROUND(Table1[[#This Row],[السعر]],2)","v":2.8}]
["باث جل 35 ملل",2.8,"عبوة","سيتي فرست","جم","باث جل 35 ملل_سيتي فرست",{"$f":"Table1[[#This Row],[الصنف]]","v":"باث جل 35 ملل"},{"$f":"ROUND(Table1[[#This Row],[السعر]],2)","v":2.8}]
["بلسم 35 ملل",3,"عبوة","سيتي فرست","جم","بلسم 35 ملل_سيتي فرست",{"$f":"Table1[[#This Row],[الصنف]]","v":"بلسم 35 ملل"},{"$f":"ROUND(Table1[[#This Row],[السعر]],2)","v":3}]
["لوشن 35 ملل",3,"عبوة","سيتي فرست","جم","لوشن 35 ملل_سيتي فرست",{"$f":"Table1[[#This Row],[الصنف]]","v":"لوشن 35 ملل"},{"$f":"ROUND(Table1[[#This Row],[السعر]],2)","v":3}]
["شاور كاب",1.6,"قطعة","سيتي فرست","جم","شاور كاب_سيتي فرست",{"$f":"Table1[[#This Row],[الصنف]]","v":"شاور كاب"},{"$f":"ROUND(Table1[[#This Row],[السعر]],2)","v":1.6}]
["سيونج كيت ",1.6,"قطعة","سيتي فرست","جم","سيونج كيت _سيتي فرست",{"$f":"Table1[[#This Row],[الصنف]]","v":"سيونج كيت "},{"$f":"ROUND(Table1[[#This Row],[السعر]],2)","v":1.6}]
["شوميت",2.8,"قطعة","سيتي فرست","جم","شوميت_سيتي فرست",{"$f":"Table1[[#This Row],[الصنف]]","v":"شوميت"},{"$f":"ROUND(Table1[[#This Row],[السعر]],2)","v":2.8}]
["لوف",6.5,"قطعة","سيتي فرست","جم","لوف_سيتي فرست",{"$f":"Table1[[#This Row],[الصنف]]","v":"لوف"},{"$f":"ROUND(Table1[[#This Row],[السعر]],2)","v":6.5}]
["مجموعة اسنان",7.5,"قطعة","سيتي فرست","جم","مجموعة اسنان_سيتي فرست",{"$f":"Table1[[#This Row],[الصنف]]","v":"مجموعة اسنان"},{"$f":"ROUND(Table1[[#This Row],[السعر]],2)","v":7.5}]
["مجموعة حلاقة",7.5,"قطعة","سيتي فرست","جم",{"$f":"A195&\"_\"&D195","v":"مجموعة حلاقة_سيتي فرست"},{"$f":"Table1[[#This Row],[الصنف]]","v":"مجموعة حلاقة"},{"$f":"ROUND(Table1[[#This Row],[السعر]],2)","v":7.5}]
["سنتري باج",1.6,"قطعة","سيتي فرست","جم","سنتري باج_سيتي فرست",{"$f":"Table1[[#This Row],[الصنف]]","v":"سنتري باج"},{"$f":"ROUND(Table1[[#This Row],[السعر]],2)","v":1.6}]
["سليبر",18.5,"قطعة","سيتي فرست","جم","سليبر_سيتي فرست",{"$f":"Table1[[#This Row],[الصنف]]","v":"سليبر"},{"$f":"ROUND(Table1[[#This Row],[السعر]],2)","v":18.5}]
["صابون 25 جم",3,"قطعة","سيتي فرست","جم","صابون 25 جم_سيتي فرست",{"$f":"Table1[[#This Row],[الصنف]]","v":"صابون 25 جم"},{"$f":"ROUND(Table1[[#This Row],[السعر]],2)","v":3}]
["شامبو  40 ملل",2.9,"عبوة","فيستا","جم","شامبو  40 ملل_فيستا",{"$f":"Table1[[#This Row],[الصنف]]","v":"شامبو  40 ملل"},{"$f":"ROUND(Table1[[#This Row],[السعر]],2)","v":2.9}]
["باث جل 40 ملل",2.9,"عبوة","فيستا","جم","باث جل 40 ملل_فيستا",{"$f":"Table1[[#This Row],[الصنف]]","v":"باث جل 40 ملل"},{"$f":"ROUND(Table1[[#This Row],[السعر]],2)","v":2.9}]
["لوشن 40 ملل",3.15,"عبوة","فيستا","جم","لوشن 40 ملل_فيستا",{"$f":"Table1[[#This Row],[الصنف]]","v":"لوشن 40 ملل"},{"$f":"ROUND(Table1[[#This Row],[السعر]],2)","v":3.15}]
["شاور كاب",2,"قطعة","فيستا","جم","شاور كاب_فيستا",{"$f":"Table1[[#This Row],[الصنف]]","v":"شاور كاب"},{"$f":"ROUND(Table1[[#This Row],[السعر]],2)","v":2}]
["فينتي كيت ",3.25,"قطعة","فيستا","جم","فينتي كيت _فيستا",{"$f":"Table1[[#This Row],[الصنف]]","v":"فينتي كيت "},{"$f":"ROUND(Table1[[#This Row],[السعر]],2)","v":3.25}]
["لوف",5.5,"قطعة","فيستا","جم","لوف_فيستا",{"$f":"Table1[[#This Row],[الصنف]]","v":"لوف"},{"$f":"ROUND(Table1[[#This Row],[السعر]],2)","v":5.5}]
["صابون 25 جم",3.1,"قطعة","فيستا","جم","صابون 25 جم_فيستا",{"$f":"Table1[[#This Row],[الصنف]]","v":"صابون 25 جم"},{"$f":"ROUND(Table1[[#This Row],[السعر]],2)","v":3.1}]
["شامبو  40 ملل",0.26300000000000001,"عبوة","أنجولا","دولار","شامبو  40 ملل_أنجولا",{"$f":"Table1[[#This Row],[الصنف]]","v":"شامبو  40 ملل"},{"$f":"ROUND(Table1[[#This Row],[السعر]],2)","v":0.26}]
["باث جل 40 ملل",0.27200000000000002,"عبوة","أنجولا","دولار","باث جل 40 ملل_أنجولا",{"$f":"Table1[[#This Row],[الصنف]]","v":"باث جل 40 ملل"},{"$f":"ROUND(Table1[[#This Row],[السعر]],2)","v":0.27}]
["بلسم 40 ملل",0.27200000000000002,"عبوة","أنجولا","دولار","بلسم 40 ملل_أنجولا",{"$f":"Table1[[#This Row],[الصنف]]","v":"بلسم 40 ملل"},{"$f":"ROUND(Table1[[#This Row],[السعر]],2)","v":0.27}]
["لوشن 40 ملل",0.28100000000000003,"عبوة","أنجولا","دولار","لوشن 40 ملل_أنجولا",{"$f":"Table1[[#This Row],[الصنف]]","v":"لوشن 40 ملل"},{"$f":"ROUND(Table1[[#This Row],[السعر]],2)","v":0.28000000000000003}]
["شاور كاب",0.14599999999999999,"قطعة","أنجولا","دولار","شاور كاب_أنجولا",{"$f":"Table1[[#This Row],[الصنف]]","v":"شاور كاب"},{"$f":"ROUND(Table1[[#This Row],[السعر]],2)","v":0.15}]
["سيونج كيت ",0.14599999999999999,"قطعة","أنجولا","دولار","سيونج كيت _أنجولا",{"$f":"Table1[[#This Row],[الصنف]]","v":"سيونج كيت "},{"$f":"ROUND(Table1[[#This Row],[السعر]],2)","v":0.15}]
["فينتي كيت ",0.16300000000000001,"قطعة","أنجولا","دولار","فينتي كيت _أنجولا",{"$f":"Table1[[#This Row],[الصنف]]","v":"فينتي كيت "},{"$f":"ROUND(Table1[[#This Row],[السعر]],2)","v":0.16}]
["شوميت",0.154,"قطعة","أنجولا","دولار","شوميت_أنجولا",{"$f":"Table1[[#This Row],[الصنف]]","v":"شوميت"},{"$f":"ROUND(Table1[[#This Row],[السعر]],2)","v":0.15}]
["مجموعة اسنان",0.45400000000000001,"قطعة","أنجولا","دولار","مجموعة اسنان_أنجولا",{"$f":"Table1[[#This Row],[الصنف]]","v":"مجموعة اسنان"},{"$f":"ROUND(Table1[[#This Row],[السعر]],2)","v":0.45}]
["مجموعة حلاقة",0.44600000000000001,"قطعة","أنجولا","دولار","مجموعة حلاقة_أنجولا",{"$f":"Table1[[#This Row],[الصنف]]","v":"مجموعة حلاقة"},{"$f":"ROUND(Table1[[#This Row],[السعر]],2)","v":0.45}]
["صابون 30 جم",0.24399999999999999,"قطعة","أنجولا","دولار","صابون 30 جم_أنجولا",{"$f":"Table1[[#This Row],[الصنف]]","v":"صابون 30 جم"},{"$f":"ROUND(Table1[[#This Row],[السعر]],2)","v":0.24}]
["صابون 50 جم",0.29099999999999998,"قطعة","أنجولا","دولار","صابون 50 جم_أنجولا",{"$f":"Table1[[#This Row],[الصنف]]","v":"صابون 50 جم"},{"$f":"ROUND(Table1[[#This Row],[السعر]],2)","v":0.28999999999999998}]
["شامبو 30ملل",3.68,"عبوة","ليبيا","جم","شامبو 30ملل_ليبيا",{"$f":"Table1[[#This Row],[الصنف]]","v":"شامبو 30ملل"},{"$f":"ROUND(Table1[[#This Row],[السعر]],2)","v":3.68}]
["رغوة 30 ملل",3.68,"عبوة","ليبيا","جم","رغوة 30 ملل_ليبيا",{"$f":"Table1[[#This Row],[الصنف]]","v":"رغوة 30 ملل"},{"$f":"ROUND(Table1[[#This Row],[السعر]],2)","v":3.68}]
["بلسم 30 ملل",4.16,"عبوة","ليبيا","جم","بلسم 30 ملل_ليبيا",{"$f":"Table1[[#This Row],[الصنف]]","v":"بلسم 30 ملل"},{"$f":"ROUND(Table1[[#This Row],[السعر]],2)","v":4.16}]
["لوشن 30 ملل",4.16,"عبوة","ليبيا","جم","لوشن 30 ملل_ليبيا",{"$f":"Table1[[#This Row],[الصنف]]","v":"لوشن 30 ملل"},{"$f":"ROUND(Table1[[#This Row],[السعر]],2)","v":4.16}]
["شاور كاب",2.16,"قطعة","ليبيا","جم","شاور كاب_ليبيا",{"$f":"Table1[[#This Row],[الصنف]]","v":"شاور كاب"},{"$f":"ROUND(Table1[[#This Row],[السعر]],2)","v":2.16}]
["سيونج كيت ",2.4,"قطعة","ليبيا","جم","سيونج كيت _ليبيا",{"$f":"Table1[[#This Row],[الصنف]]","v":"سيونج كيت "},{"$f":"ROUND(Table1[[#This Row],[السعر]],2)","v":2.4}]
["قطن سوابس",2.56,"قطعة","ليبيا","جم","قطن سوابس_ليبيا",{"$f":"Table1[[#This Row],[الصنف]]","v":"قطن سوابس"},{"$f":"ROUND(Table1[[#This Row],[السعر]],2)","v":2.56}]
["قطن ميكأب ( 1 قطعة )",2.4,"قطعة","ليبيا","جم","قطن ميكأب ( 1 قطعة )_ليبيا",{"$f":"Table1[[#This Row],[الصنف]]","v":"قطن ميكأب ( 1 قطعة )"},{"$f":"ROUND(Table1[[#This Row],[السعر]],2)","v":2.4}]
["قطن ميكأب ( 2 قطعة )",3.04,"قطعة","ليبيا","جم","قطن ميكأب ( 2 قطعة )_ليبيا",{"$f":"Table1[[#This Row],[الصنف]]","v":"قطن ميكأب ( 2 قطعة )"},{"$f":"ROUND(Table1[[#This Row],[السعر]],2)","v":3.04}]
["فينتي كيت",4,"قطعة","ليبيا","جم","فينتي كيت_ليبيا",{"$f":"Table1[[#This Row],[الصنف]]","v":"فينتي كيت"},{"$f":"ROUND(Table1[[#This Row],[السعر]],2)","v":4}]
["مبرد",2.4,"قطعة","ليبيا","جم","مبرد_ليبيا",{"$f":"Table1[[#This Row],[الصنف]]","v":"مبرد"},{"$f":"ROUND(Table1[[#This Row],[السعر]],2)","v":2.4}]
["شوميت",3.12,"قطعة","ليبيا","جم","شوميت_ليبيا",{"$f":"Table1[[#This Row],[الصنف]]","v":"شوميت"},{"$f":"ROUND(Table1[[#This Row],[السعر]],2)","v":3.12}]
["مجموعة اسنان",8,"قطعة","ليبيا","جم","مجموعة اسنان_ليبيا",{"$f":"Table1[[#This Row],[الصنف]]","v":"مجموعة اسنان"},{"$f":"ROUND(Table1[[#This Row],[السعر]],2)","v":8}]
["مجموعة حلاقة",8,"قطعة","ليبيا","جم","مجموعة حلاقة_ليبيا",{"$f":"Table1[[#This Row],[الصنف]]","v":"مجموعة حلاقة"},{"$f":"ROUND(Table1[[#This Row],[السعر]],2)","v":8}]
["مشط شعر",2.72,"قطعة","ليبيا","جم","مشط شعر_ليبيا",{"$f":"Table1[[#This Row],[الصنف]]","v":"مشط شعر"},{"$f":"ROUND(Table1[[#This Row],[السعر]],2)","v":2.72}]
["صواني",272,"قطعة","ليبيا","جم","صواني_ليبيا",{"$f":"Table1[[#This Row],[الصنف]]","v":"صواني"},{"$f":"ROUND(Table1[[#This Row],[السعر]],2)","v":272}]
["سليبر مفتوح 1",16,"قطعة","ليبيا","جم","سليبر مفتوح 1_ليبيا",{"$f":"Table1[[#This Row],[الصنف]]","v":"سليبر مفتوح 1"},{"$f":"ROUND(Table1[[#This Row],[السعر]],2)","v":16}]
["سليبر مفتوح 2",18.399999999999999,"قطعة","ليبيا","جم","سليبر مفتوح 2_ليبيا",{"$f":"Table1[[#This Row],[الصنف]]","v":"سليبر مفتوح 2"},{"$f":"ROUND(Table1[[#This Row],[السعر]],2)","v":18.399999999999999}]
["لبيسة",2.72,"قطعة","ليبيا","جم","لبيسة_ليبيا",{"$f":"Table1[[#This Row],[الصنف]]","v":"لبيسة"},{"$f":"ROUND(Table1[[#This Row],[السعر]],2)","v":2.72}]
["صابون 25 جم",4.16,"قطعة","ليبيا","جم","صابون 25 جم_ليبيا",{"$f":"Table1[[#This Row],[الصنف]]","v":"صابون 25 جم"},{"$f":"ROUND(Table1[[#This Row],[السعر]],2)","v":4.16}]
["غسول فم",6.75,"عبوة","فور سيزون","جم","غسول فم_فور سيزون",{"$f":"Table1[[#This Row],[الصنف]]","v":"غسول فم"},{"$f":"ROUND(Table1[[#This Row],[السعر]],2)","v":6.75}]
["ملح حمام",8.4,"قطعة","فور سيزون","جم","ملح حمام_فور سيزون",{"$f":"Table1[[#This Row],[الصنف]]","v":"ملح حمام"},{"$f":"ROUND(Table1[[#This Row],[السعر]],2)","v":8.4}]
["شامبو 30 ملل",2.6,"عبوة","البرنس عباس - رويال ليلي","جم","شامبو 30 ملل_البرنس عباس - رويال ليلي",{"$f":"Table1[[#This Row],[الصنف]]","v":"شامبو 30 ملل"},{"$f":"ROUND(Table1[[#This Row],[السعر]],2)","v":2.6}]
["رغوة 30 ملل",2.6,"عبوة","البرنس عباس - رويال ليلي","جم","رغوة 30 ملل_البرنس عباس - رويال ليلي",{"$f":"Table1[[#This Row],[الصنف]]","v":"رغوة 30 ملل"},{"$f":"ROUND(Table1[[#This Row],[السعر]],2)","v":2.6}]
["بلسم 30 ملل",2.8,"عبوة","البرنس عباس - رويال ليلي","جم","بلسم 30 ملل_البرنس عباس - رويال ليلي",{"$f":"Table1[[#This Row],[الصنف]]","v":"بلسم 30 ملل"},{"$f":"ROUND(Table1[[#This Row],[السعر]],2)","v":2.8}]
["لوشن 30 ملل",2.8,"عبوة","البرنس عباس - رويال ليلي","جم","لوشن 30 ملل_البرنس عباس - رويال ليلي",{"$f":"Table1[[#This Row],[الصنف]]","v":"لوشن 30 ملل"},{"$f":"ROUND(Table1[[#This Row],[السعر]],2)","v":2.8}]
["صابون 25 جم",3,"قطعة","البرنس عباس - رويال ليلي","جم","صابون 25 جم_البرنس عباس - رويال ليلي",{"$f":"Table1[[#This Row],[الصنف]]","v":"صابون 25 جم"},{"$f":"ROUND(Table1[[#This Row],[السعر]],2)","v":3}]
["شامبو 35 ملل",2.8,"عبوة","فورت ارابيسك","جم","شامبو 35 ملل_فورت ارابيسك",{"$f":"Table1[[#This Row],[الصنف]]","v":"شامبو 35 ملل"},{"$f":"ROUND(Table1[[#This Row],[السعر]],2)","v":2.8}]
["رغوة 35 ملل",2.8,"عبوة","فورت ارابيسك","جم","رغوة 35 ملل_فورت ارابيسك",{"$f":"Table1[[#This Row],[الصنف]]","v":"رغوة 35 ملل"},{"$f":"ROUND(Table1[[#This Row],[السعر]],2)","v":2.8}]
["بلسم 35 ملل",3,"عبوة","فورت ارابيسك","جم","بلسم 35 ملل_فورت ارابيسك",{"$f":"Table1[[#This Row],[الصنف]]","v":"بلسم 35 ملل"},{"$f":"ROUND(Table1[[#This Row],[السعر]],2)","v":3}]
["لوشن 35 ملل",3,"عبوة","فورت ارابيسك","جم","لوشن 35 ملل_فورت ارابيسك",{"$f":"Table1[[#This Row],[الصنف]]","v":"لوشن 35 ملل"},{"$f":"ROUND(Table1[[#This Row],[السعر]],2)","v":3}]
["شامبو 40 ملل",6.28,"عبوة","فورت ارابيسك","جم","شامبو 40 ملل_فورت ارابيسك",{"$f":"Table1[[#This Row],[الصنف]]","v":"شامبو 40 ملل"},{"$f":"ROUND(Table1[[#This Row],[السعر]],2)","v":6.28}]
["رغوة 40 ملل",6.75,"عبوة","فورت ارابيسك","جم","رغوة 40 ملل_فورت ارابيسك",{"$f":"Table1[[#This Row],[الصنف]]","v":"رغوة 40 ملل"},{"$f":"ROUND(Table1[[#This Row],[السعر]],2)","v":6.75}]
["بلسم 40 ملل",6.75,"عبوة","فورت ارابيسك","جم","بلسم 40 ملل_فورت ارابيسك",{"$f":"Table1[[#This Row],[الصنف]]","v":"بلسم 40 ملل"},{"$f":"ROUND(Table1[[#This Row],[السعر]],2)","v":6.75}]
["لوشن 40 ملل",7.22,"عبوة","فورت ارابيسك","جم","لوشن 40 ملل_فورت ارابيسك",{"$f":"Table1[[#This Row],[الصنف]]","v":"لوشن 40 ملل"},{"$f":"ROUND(Table1[[#This Row],[السعر]],2)","v":7.22}]
[null,null,null,null,null,{"$f":"A253&\"_\"&D253","v":"_"},{"$f":"Table1[[#This Row],[الصنف]]","v":0},{"$f":"ROUND(Table1[[#This Row],[السعر]],2)","v":0}]

{"sheet":"العملاء","index":3,"n_rows":73,"n_cols":8,"rows_kept":73,"cut":false,"hidden":false,"merged":[]}
["م","اسم العميل","كود","رقم السجل التجاري","العنوان","الايميل","المسئول","تليفون"]
[1,"سوفتيل الجزيرة",1001,204957869]
[2,"جاز بلفدير شرم",1002,200655639]
[3,"هيلتون مركز التجارة ",1003]
[4,"هيلتون رمسيس",1004,100272754]
[5,"هيلتون الزمالك",1005]
[6,"هيلتون بلازا الغردقة",1006,200139258]
[7,"هيلتون الكورنيش اسكندرية",1007,204902223]
[8,"هيلتون كينج رانش برج العرب",1008,202463540]
[9,"هيلتون جرين بلازا اسكندرية",1009,200246216]
[10,"هيلتون نوبيا مرسي علم",1010,713348542]
[11,"جاز فنارة شرم",1011,205080197]
[12,"JW Marriott",1012]
[13,"نقدا",1013]
[14,"شتايجن برجر كايرو بيراميدز",1014,540266124]
[15,"هيلتون هيلوبوليس المطار",1015]
[16,"جاز ابروتيل برج العرب",1016,572602766]
[17,"شتايجن برجر سيسل اسكندرية",1017,200157957]
[18,"جاز اكوا مارين الغردقه",1018,452571944]
[19,"جاز ابروتيل بالاس شرم",1019,204928257]
[20,"شتايجن برجر الكازار شرم",1020,204963036]
[21,"جاز مرابيل بيتش شرم",1021,204938643]
[22,"شتايجن برجر الاقصر اشتي ريزورت",1022]
[23,"DUSIT",1023]
[24,"جاز كلوب مكادي مكادينا",1024]
[25,"شتايجن برجر رأس سوما",1025]
[26,"جاز ابروتيل الاقصر",1026]
[27,"شتايجن برجر نايل بالاس الاقصر",1027]
[28,"جاز اكوا فيفا مكادي",1028]
[29,"DINA ISKANDER",1029]
[30,"جاز مكادي صن",1030]
[31,"جاز كورايا مرسي علم",1031]
[32,"جاز دهبية",1032]
[33,"جاز سوليمار سوما بيتش",1033]
[34,"جاز ابروتيل كوستا مرسي علم",1034]
[35,"جاز ابروتيل شرم",1035]
[36,"فندق الماسة",1036]
[37,"شتايجن برجر اللسان رأس البر",1037]
[38,"شتايجين برجر سيسل",1038]
[39,"جاز ابروتيل فنارة",1039]
[40,"جاز ميرابيل بيتش",1040]
[41,"جاز بيل فيدير ",1041]
[42,"جاز السخنة",1042]
[43,"جاز مكادى اوزايس",1043]
[44,"جاز كورايا مرسي علم  ",1044]
[45,"شتايجن برجر اكوا ماجيك الداو",1045]
[46,"جاز الماظة بيتش مطروح",1046]
[47,"جاز ابروتيل مكادى بيتش",1047]
[48,"جاز جراند ريستا",1048]
[49,"كازا دلمار ( جراند بلازا)",1049]
[50,"شتايجن الهرم",1050]
[51,"ابروتيل كوستا مرسى علم",1051]
[52," شتايجن مكادي سرايا بالمز ",1052]
[53,"جراند اوشن السخنة",1053]
[54,"ماجيك وورلد شرم",1054]
[55,"شتايجن كورايا مرسي علم  ",1055]
[56,"الماظة شرم",1056]
[57," شتايجن برجر رأس سوما",1057]
[58,"هيلتون بيراميدز الجولف",1058,200226215]
[59,"الخليج الازرق للاستثمار السياحى",1059]
[60,"هيلتون هليوبوليس القاهرة",1060]
[61,"جاز مكادي سنسمار",1061]
[62,"شتايجن برجر الداو بيتش الغردقة",1062]
[63,"فيستا",1063]
[64,"سوليمار بايونيرز الواحات",1064]
[65,"فور سيزون",1065]
[66,"سيتى ابو سمبل",1066]
[67,"ST.Regis",1067]
[68,"sivol LDA Angola",1068]
[69,"Erwan hotel",1069]
[70,"فيستا الغردقة",1070]
[71,"سيتى شرم",1071]
[72,"هيلتون شاركس باى شرم",1072]

{"sheet":"الأصناف","index":4,"n_rows":95,"n_cols":5,"rows_kept":95,"cut":false,"hidden":false,"merged":[]}
["م","الصنف","Item","cost","Balance"]
[1,"شامبو 30"]
[2,"باث جل 30"]
[3,"بلسم 30"]
[4,"لوشن 30"]
[5,"شامبو  45"]
[6,"بادي ووش 45"]
[7,"بلسم  45"]
[8,"لوشن 45"]
[9,"مجموعة اسنان لوكس"]
[10,"مجموعة اسنان"]
[11,"مجموعة حلاقة"]
[12,"مجموعة حلاقة لوكس"]
[13,"لوف"]
[14,"سيونج كيت"]
[15,"شاور كاب"]
[16,"قطن سوابس"]
[17,"فينتي كيت"]
[18,"شوميت"]
[19,"لبيسة"]
[20,"قطن ميكأب 2 ق"]
[21,"مبرد"]
[22,"مشط شعر"]
[23,"غسول فم"]
[24,"شبشب عادي"]
[25,"شبشب مميز"]
[26,"ملح حمام"]
[27,"سنتري باج"]
[28,"صابون 25"]
[29,"صابون 35"]
[30,"شامبو  40 ملل"]
[31,"باث جل 40 ملل"]
[32,"بلسم 40 ملل"]
[33,"لوشن 40 ملل"]
[34,"شامبو  80 ملل"]
[35,"باث جل 80 ملل"]
[36,"بلسم 80 ملل"]
[37,"لوشن 80 ملل"]
[38,"سيونج كيت "]
[39,"فينتي كيت "]
[40,"صابون 30 جم"]
[41,"صابون 50 جم"]
[42,"جراكن شامبو 4 لتر"]
[43,"جراكن شاور جل 4 لتر"]
[44,"جراكن هاند سوب 4 لتر"]
[45,"جراكن لوشن 4 لتر"]
[46,"قطن سوابس "]
[47,"شامبو 40 ملل"]
[48,"شاور جل 40 ملل"]
[49,"شامبو تيوب 80"]
[50,"بادي ووش تيوب 80"]
[51,"بلسم تيوب 80"]
[52,"لوشن تيوب 80"]
[53,"فينتي كيت (قطن دائري )"]
[54,"قطن سوابس 3 عود"]
[55,"قطن سوابس 2 عود"]
[56,"قطن ميكأب"]
[57,"صابون 30"]
[58,"صابون 50"]
[59,"قطن ميكأب ( 1 قطعة )"]
[60,"قطن ميكأب ( 2 قطعة )"]
[61,"صابون 25 جم"]
[62,"صابون 35 جم"]
[63,"شامبو 30 ملل"]
[64,"رغوة 30 ملل"]
[65,"بلسم 30 ملل"]
[66,"لوشن 30 ملل"]
[67,"شاور كاب بدون علبة"]
[68,"علب اسنان مطبوعة فارغة"]
[69,"علب لوف مطبوعة فارغة"]
[70,"علب سنتري مطبوعة فارغة"]
[71,"علب سيونج كيت مطبوعة فارغة"]
[72,"علب حلاقة مطبوعة فارغة"]
[73,"علب شوميت مطبوعة فارغة"]
[74,"علب قطن ميكأب مطبوعة فارغة"]
[75,"علب شاور كاب ميكأب مطبوعة فارغة"]
[76,"قطن سوابس بدون علبة"]
[77,"قطن ميكأب بدون علبة"]
[78,"مبرد بدون علبة"]
[79,"سليبر"]
[80,"شامبو  40 ملل vip"]
[81,"باث جل 40 ملل vip"]
[82,"بلسم 40 ملل vip"]
[83,"لوشن 40 ملل vip"]
[84,"شامبو  35 ملل"]
[85,"باث جل 35 ملل"]
[86,"بلسم 35 ملل"]
[87,"لوشن 35 ملل"]
[88,"شامبو 30ملل"]
[89,"صواني"]
[90,"سليبر مفتوح 1"]
[91,"سليبر مفتوح 2"]
[92,"شامبو 35 ملل"]
[93,"رغوة 35 ملل"]
[94,"رغوة 40 ملل"]